fUSD/lending_fUSD_20240423
["ID","MTS","AMOUNT","RATE_DAILY","PERIOD"]
[323288140,1713875432422,-69.02198415,0.00011284,2]
[323288141,1713875432434,-80.97801585,0.00011284,2]
[323288142,1713875432443,-150.0,0.00011302,2]
[323288143,1713875432452,-98.31521474,0.00011325,2]
[323288150,1713875438181,-1154.45478526,0.00011325,2]
[323288151,1713875438191,-185.05293411,0.00011326,2]
[323288152,1713875438200,-505.8801408,0.0001139,2]
[323288153,1713875438209,-150.0,0.00011399,2]
[323288154,1713875438218,-307.5657,0.000114,2]
[323288155,1713875438226,-307.56571,0.000114,2]
[323288156,1713875438236,-307.56571,0.000114,2]
[323288157,1713875438245,-307.56571,0.000114,2]
[323288158,1713875438255,-150.0,0.00011405,2]
[323288159,1713875438264,-150.0,0.0001141,2]
[323288160,1713875438273,-150.0,0.00011412,2]
[323288161,1713875438283,-150.0,0.00011414,2]
[323288162,1713875438292,-182.28094602,0.00011423,2]
[323288163,1713875438301,-164.3711199,0.00011423,2]
[323288164,1713875438310,-469.37478401,0.00011423,2]
[323288165,1713875438319,-156.22471055,0.00011423,2]
[323288166,1713875438328,-2320.96735053,0.00011423,2]
[323288167,1713875438337,-199.73636096,0.00011423,2]
[323288168,1713875438346,-373.08888699,0.00011423,2]
[323288169,1713875438356,-1732.92770462,0.00011423,2]
[323288170,1713875438365,-19844.27263532,0.00011423,2]
[323288171,1713875438375,-289.10427307,0.00011423,2]
[323288172,1713875438384,-192.34341229,0.00011423,2]
[323288173,1713875438393,-500.0,0.00011424,2]
[323288174,1713875438401,-500.0,0.00011424,2]
[323288175,1713875438410,-635.39,0.00011424,2]
[323288176,1713875438419,-500.0,0.00011424,2]
[323288177,1713875438430,-500.0,0.00011424,2]
[323288178,1713875438440,-876.33,0.00011424,2]
[323288179,1713875438450,-500.0,0.00011424,2]
[323288180,1713875438459,-500.0,0.00011424,2]
[323288181,1713875438468,-738.73,0.00011424,2]
[323288182,1713875438478,-500.0,0.00011424,2]
[323288183,1713875438487,-3699.13,0.00011424,2]
[323288184,1713875438496,-678.62,0.00011424,2]
[323288185,1713875438505,-444.91418513,0.00011424,2]
[323288186,1713875438515,-500.0,0.00011424,2]
[323288187,1713875438524,-500.0,0.00011424,2]
[323288188,1713875438534,-1713.89,0.00011424,2]
[323288189,1713875438543,-526.03,0.00011424,2]
[323288190,1713875438552,-500.0,0.00011424,2]
[323288191,1713875438561,-1303.54,0.00011424,2]
[323288192,1713875438570,-500.0,0.00011424,2]
[323288193,1713875438579,-3037.57,0.00011424,2]
[323288194,1713875438588,-863.1,0.00011424,2]
[323288196,1713875438597,-500.0,0.00011424,2]
[323288198,1713875438607,-500.0,0.00011424,2]
[323288200,1713875438616,-662.31,0.00011424,2]
[323288202,1713875438625,-1519.85,0.00011424,2]
[323288204,1713875438634,-2612.7,0.00011424,2]
[323288206,1713875438643,-1076.0,0.00011424,2]
[323288208,1713875438652,-500.0,0.00011424,2]
[323288210,1713875438661,-16748.88,0.00011424,2]
[323288212,1713875438671,-506.29,0.00011424,2]
[323288214,1713875438681,-500.0,0.00011424,2]
[323288216,1713875438690,-500.0,0.00011424,2]
[323288218,1713875438699,-5671.8,0.00011424,2]
[323288220,1713875438707,-500.0,0.00011424,2]
[323288222,1713875438716,-500.0,0.00011424,2]
[323288224,1713875438726,-500.0,0.00011424,2]
[323288226,1713875438735,-782.57,0.00011424,2]
[323288228,1713875438744,-500.0,0.00011424,2]
[323288230,1713875438754,-726.04,0.00011424,2]
[323288232,1713875438762,-6219.57,0.00011424,2]
[323288234,1713875438771,-500.0,0.00011424,2]
[323288236,1713875438780,-2158.39,0.00011424,2]
[323288238,1713875438789,-1071.29,0.00011424,2]
[323288240,1713875438798,-500.0,0.00011424,2]
[323288242,1713875438808,-6737.72,0.00011424,2]
[323288244,1713875438820,-500.0,0.00011424,2]
[323288246,1713875438829,-500.0,0.00011424,2]
[323288248,1713875438838,-500.0,0.00011424,2]
[323288249,1713875438847,-742.74,0.00011424,2]
[323288250,1713875438859,-500.0,0.00011424,2]
[323288251,1713875438868,-3731.11,0.00011424,2]
[323288252,1713875438877,-500.0,0.00011424,2]
[323288253,1713875438888,-500.0,0.00011424,2]
[323288254,1713875438901,-500.0,0.00011424,2]
[323288255,1713875438911,-17460.36,0.00011424,2]
[323288256,1713875438919,-500.0,0.00011424,2]
[323288257,1713875438928,-2376.82,0.00011424,2]
[323288258,1713875438938,-590.47,0.00011424,2]
[323288259,1713875438947,-500.0,0.00011424,2]
[323288260,1713875438957,-500.0,0.00011424,2]
[323288261,1713875438965,-20592.15463225,0.00011424,2]
[323288262,1713875438999,-815.0,0.00011424,2]
[323288263,1713875439011,-5302.71536775,0.00011424,2]
[323288264,1713875439021,-500.0,0.00011424,2]
[323288265,1713875439031,-500.0,0.00011424,2]
[323288266,1713875439042,-500.0,0.00011424,2]
[323288267,1713875439053,-500.0,0.00011424,2]
[323288268,1713875439064,-717.91,0.00011424,2]
[323288269,1713875439074,-623.8,0.00011424,2]
[323288270,1713875439083,-2634.21,0.00011424,2]
[323288271,1713875439092,-500.0,0.00011424,2]
[323288272,1713875439101,-500.0,0.00011424,2]
[323288273,1713875439110,-500.0,0.00011424,2]
[323288274,1713875439119,-500.0,0.00011424,2]
[323288275,1713875439130,-588.79,0.00011424,2]
[323288276,1713875439139,-155.25731955,0.00011424,2]
[323288277,1713875439149,-34963.75,0.00011424,2]
[323288278,1713875439158,-684.82,0.00011424,2]
[323288279,1713875439168,-500.0,0.00011424,2]
[323288280,1713875439177,-500.0,0.00011424,2]
[323288281,1713875439187,-500.0,0.00011424,2]
[323288282,1713875439196,-500.0,0.00011424,2]
[323288283,1713875439205,-1982.49,0.00011424,2]
[323288284,1713875439214,-107732.31121293,0.00011425,2]
[323288285,1713875439223,-284.32561242,0.00011425,2]
[323288286,1713875439233,-1114.39,0.00011425,2]
[323288287,1713875439241,-793.25,0.00011425,2]
[323288288,1713875439250,-778.52,0.00011425,2]
[323288289,1713875439259,-500.0,0.00011425,2]
[323288290,1713875439268,-500.0,0.00011425,2]
[323288291,1713875439277,-500.0,0.00011425,2]
[323288292,1713875439286,-500.0,0.00011425,2]
[323288293,1713875439295,-500.0,0.00011425,2]
[323288294,1713875439304,-500.0,0.00011425,2]
[323288295,1713875439314,-500.0,0.00011425,2]
[323288296,1713875439323,-828.0,0.00011425,2]
[323288297,1713875439332,-783.91,0.00011425,2]
[323288298,1713875439342,-500.0,0.00011425,2]
[323288299,1713875439351,-500.0,0.00011425,2]
[323288300,1713875439360,-500.0,0.00011425,2]
[323288301,1713875439369,-500.0,0.00011425,2]
[323288302,1713875439378,-500.0,0.00011425,2]
[323288303,1713875439387,-500.0,0.00011425,2]
[323288304,1713875439396,-500.0,0.00011425,2]
[323288305,1713875439405,-500.0,0.00011425,2]
[323288306,1713875439414,-500.0,0.00011425,2]
[323288307,1713875439423,-500.0,0.00011425,2]
[323288308,1713875439434,-500.0,0.00011425,2]
[323288309,1713875439444,-500.0,0.00011425,2]
[323288310,1713875439453,-810.64,0.00011425,2]
[323288311,1713875439462,-327.33,0.00011425,2]
[323288312,1713875439471,-500.0,0.00011425,2]
[323288313,1713875439481,-500.0,0.00011425,2]
[323288314,1713875439490,-500.0,0.00011425,2]
[323288315,1713875439499,-1073.77,0.00011425,2]
[323288316,1713875439508,-161.84,0.00011425,2]
[323288317,1713875439518,-500.0,0.00011425,2]
[323288318,1713875439527,-500.0,0.00011425,2]
[323288319,1713875439537,-500.0,0.00011425,2]
[323288320,1713875439546,-150.0,0.00011425,2]
[323288321,1713875439556,-500.0,0.00011425,2]
[323288322,1713875439565,-500.0,0.00011425,2]
[323288323,1713875439574,-303.01,0.00011425,2]
[323288324,1713875439583,-500.0,0.00011425,2]
[323288325,1713875439592,-500.0,0.00011425,2]
[323288326,1713875439601,-777.29,0.00011425,2]
[323288327,1713875439610,-500.0,0.00011425,2]
[323288328,1713875439620,-500.0,0.00011425,2]
[323288329,1713875439631,-500.0,0.00011425,2]
[323288330,1713875439640,-500.0,0.00011425,2]
[323288331,1713875439649,-1516.76,0.00011425,2]
[323288332,1713875439659,-500.0,0.00011425,2]
[323288333,1713875439668,-500.0,0.00011425,2]
[323288334,1713875439678,-970.46,0.00011425,2]
[323288335,1713875439688,-500.0,0.00011425,2]
[323288336,1713875439697,-500.0,0.00011425,2]
[323288337,1713875439706,-500.0,0.00011425,2]
[323288338,1713875439715,-500.0,0.00011425,2]
[323288339,1713875439724,-516.49813209,0.00011425,2]
[323288340,1713875439733,-500.0,0.00011425,2]
[323288341,1713875439743,-500.0,0.00011425,2]
[323288342,1713875439752,-500.0,0.00011425,2]
[323288343,1713875439761,-500.0,0.00011425,2]
[323288344,1713875439770,-500.0,0.00011425,2]
[323288345,1713875439779,-500.0,0.00011425,2]
[323288346,1713875439789,-4141.45,0.00011425,2]
[323288347,1713875439798,-500.0,0.00011425,2]
[323288348,1713875439807,-500.0,0.00011425,2]
[323288349,1713875439819,-500.0,0.00011425,2]
[323288350,1713875439829,-500.0,0.00011425,2]
[323288351,1713875439838,-500.0,0.00011425,2]
[323288352,1713875439847,-663.98,0.00011425,2]
[323288353,1713875439857,-500.0,0.00011425,2]
[323288354,1713875439867,-1449.21,0.00011425,2]
[323288355,1713875439876,-574.8777202,0.00011425,2]
[323288356,1713875439885,-500.0,0.00011425,2]
[323288357,1713875439894,-500.37451988,0.00011425,2]
[323288358,1713875439903,-2415.16,0.00011425,2]
[323288359,1713875439912,-500.0,0.00011425,2]
[323288360,1713875439921,-459.04458289,0.00011425,2]
[323288361,1713875439930,-500.0,0.00011425,2]
[323288362,1713875439939,-500.0,0.00011425,2]
[323288363,1713875439947,-500.0,0.00011425,2]
[323288364,1713875439958,-1200.45,0.00011425,2]
[323288365,1713875439966,-500.0,0.00011425,2]
[323288366,1713875439975,-500.0,0.00011425,2]
[323288367,1713875439985,-1319.45,0.00011425,2]
[323288368,1713875439994,-500.0,0.00011425,2]
[323288369,1713875440004,-979.99,0.00011425,2]
[323288370,1713875440013,-500.0,0.00011425,2]
[323288371,1713875440022,-500.0,0.00011425,2]
[323288372,1713875440033,-1000.0,0.00011425,2]
[323288373,1713875440042,-500.0,0.00011425,2]
[323288374,1713875440053,-500.0,0.00011425,2]
[323288375,1713875440062,-500.0,0.00011425,2]
[323288376,1713875440071,-500.0,0.00011425,2]
[323288377,1713875440080,-2698.32,0.00011425,2]
[323288378,1713875440090,-500.0,0.00011425,2]
[323288379,1713875440099,-500.0,0.00011425,2]
[323288380,1713875440109,-500.11112978,0.00011425,2]
[323288381,1713875440118,-500.0,0.00011425,2]
[323288382,1713875440127,-500.0,0.00011425,2]
[323288383,1713875440136,-500.0,0.00011425,2]
[323288384,1713875440145,-500.23071144,0.00011425,2]
[323288385,1713875440154,-488.0,0.00011425,2]
[323288386,1713875440163,-500.0,0.00011425,2]
[323288387,1713875440172,-500.0,0.00011425,2]
[323288388,1713875440181,-293.45,0.00011425,2]
[323288389,1713875440190,-2281.42,0.00011425,2]
[323288390,1713875440200,-500.0,0.00011425,2]
[323288391,1713875440209,-500.0,0.00011425,2]
[323288392,1713875440218,-500.0,0.00011425,2]
[323288393,1713875440226,-500.0,0.00011425,2]
[323288394,1713875440235,-1558.38,0.00011425,2]
[323288395,1713875440245,-500.0,0.00011425,2]
[323288396,1713875440254,-500.0,0.00011425,2]
[323288397,1713875440263,-548.84628807,0.00011425,2]
[323288398,1713875440273,-500.0,0.00011425,2]
[323288399,1713875440282,-500.0,0.00011425,2]
[323288400,1713875440291,-500.07485068,0.00011425,2]
[323288401,1713875440300,-500.0,0.00011425,2]
[323288402,1713875440309,-500.53873691,0.00011425,2]
[323288403,1713875440318,-500.0,0.00011425,2]
[323288404,1713875440327,-500.0,0.00011425,2]
[323288405,1713875440336,-622.53,0.00011425,2]
[323288406,1713875440345,-605.22411198,0.00011425,2]
[323288407,1713875440354,-242.15,0.00011425,2]
[323288408,1713875440363,-500.0,0.00011425,2]
[323288409,1713875440373,-500.0,0.00011425,2]
[323288410,1713875440382,-500.0,0.00011425,2]
[323288411,1713875440391,-500.0,0.00011425,2]
[323288412,1713875440400,-629.33407229,0.00011425,2]
[323288413,1713875440410,-309.36589737,0.00011425,2]
[323288414,1713875440419,-865.32,0.00011425,2]
[323288415,1713875440428,-1181.8,0.00011425,2]
[323288416,1713875440437,-500.0,0.00011425,2]
[323288417,1713875440447,-153.73158109,0.00011425,2]
[323288418,1713875440456,-1728.1,0.00011425,2]
[323288419,1713875440466,-510.24,0.00011425,2]
[323288420,1713875440475,-500.0,0.00011425,2]
[323288421,1713875440484,-500.0,0.00011425,2]
[323288422,1713875440493,-500.0,0.00011425,2]
[323288423,1713875440503,-759.4,0.00011425,2]
[323288424,1713875440512,-500.0,0.00011425,2]
[323288425,1713875440521,-500.0,0.00011425,2]
[323288426,1713875440530,-500.0,0.00011425,2]
[323288427,1713875440539,-500.0,0.00011425,2]
[323288428,1713875440549,-500.0,0.00011425,2]
[323288429,1713875440558,-500.0,0.00011425,2]
[323288430,1713875440567,-500.0,0.00011425,2]
[323288431,1713875440576,-665.62,0.00011425,2]
[323288432,1713875440585,-1324.66,0.00011425,2]
[323288433,1713875440595,-500.0,0.00011425,2]
[323288434,1713875440604,-1097.8,0.00011425,2]
[323288435,1713875440613,-500.0,0.00011425,2]
[323288436,1713875440622,-500.0,0.00011425,2]
[323288437,1713875440631,-962.25,0.00011425,2]
[323288438,1713875440640,-500.0,0.00011425,2]
[323288439,1713875440649,-500.0,0.00011425,2]
[323288440,1713875440657,-500.0,0.00011425,2]
[323288441,1713875440666,-500.0,0.00011425,2]
[323288442,1713875440674,-500.0,0.00011425,2]
[323288443,1713875440684,-500.0,0.00011425,2]
[323288444,1713875440693,-2467.49,0.00011425,2]
[323288445,1713875440701,-1771.49,0.00011425,2]
[323288446,1713875440710,-500.0,0.00011425,2]
[323288447,1713875440720,-500.0,0.00011425,2]
[323288448,1713875440729,-649.75,0.00011425,2]
[323288449,1713875440738,-988.32,0.00011425,2]
[323288450,1713875440747,-842.85,0.00011425,2]
[323288451,1713875440756,-9816.22964196,0.00011426,2]
[323288452,1713875440765,-523.31,0.00011426,2]
[323288453,1713875440774,-500.0,0.00011426,2]
[323288454,1713875440783,-500.0,0.00011426,2]
[323288455,1713875440793,-500.0,0.00011426,2]
[323288456,1713875440802,-500.0,0.00011426,2]
[323288457,1713875440811,-500.0,0.00011426,2]
[323288458,1713875440824,-500.0,0.00011426,2]
[323288459,1713875440834,-500.0,0.00011426,2]
[323288460,1713875440844,-500.0,0.00011426,2]
[323288461,1713875440855,-500.0,0.00011426,2]
[323288462,1713875440866,-912.98,0.00011426,2]
[323288463,1713875440875,-454.44239511,0.00011426,2]
[323288464,1713875440884,-500.0,0.00011426,2]
[323288465,1713875440894,-828.36,0.00011426,2]
[323288466,1713875440903,-500.0,0.00011426,2]
[323288467,1713875440913,-500.0,0.00011426,2]
[323288468,1713875440922,-500.0,0.00011426,2]
[323288469,1713875440934,-500.0,0.00011426,2]
[323288470,1713875440943,-500.0,0.00011426,2]
[323288471,1713875440953,-750.11,0.00011426,2]
[323288472,1713875440961,-500.0,0.00011426,2]
[323288473,1713875440970,-371.17,0.00011426,2]
[323288474,1713875440980,-500.0,0.00011426,2]
[323288475,1713875440991,-500.0,0.00011426,2]
[323288476,1713875441000,-500.0,0.00011426,2]
[323288477,1713875441009,-500.0,0.00011426,2]
[323288478,1713875441018,-150.0,0.00011426,2]
[323288479,1713875441027,-534.27,0.00011426,2]
[323288480,1713875441037,-883.72,0.00011426,2]
[323288481,1713875441046,-500.0,0.00011426,2]
[323288482,1713875441055,-647.65,0.00011426,2]
[323288483,1713875441064,-500.0,0.00011426,2]
[323288484,1713875441073,-499.06951869,0.00011426,2]
[323288485,1713875441082,-500.0,0.00011426,2]
[323288486,1713875441092,-500.0,0.00011426,2]
[323288487,1713875441101,-500.0,0.00011426,2]
[323288488,1713875441111,-363.53802358,0.00011426,2]
[323288489,1713875441122,-500.0,0.00011426,2]
[323288490,1713875441133,-500.0,0.00011426,2]
[323288491,1713875441144,-500.0,0.00011426,2]
[323288492,1713875441154,-500.0,0.00011426,2]
[323288493,1713875441164,-759.68,0.00011426,2]
[323288494,1713875441174,-500.0,0.00011426,2]
[323288495,1713875441184,-500.0,0.00011426,2]
[323288496,1713875441194,-500.0,0.00011426,2]
[323288497,1713875441204,-500.0,0.00011426,2]
[323288498,1713875441214,-868.53,0.00011426,2]
[323288499,1713875441223,-500.0,0.00011426,2]
[323288500,1713875441233,-500.0,0.00011426,2]
[323288501,1713875441247,-500.0,0.00011426,2]
[323288502,1713875441262,-500.0,0.00011426,2]
[323288503,1713875441272,-500.0,0.00011426,2]
[323288504,1713875441282,-500.0,0.00011426,2]
[323288505,1713875441292,-372.58,0.00011426,2]
[323288506,1713875441301,-500.0,0.00011426,2]
[323288507,1713875441311,-500.0,0.00011426,2]
[323288508,1713875441321,-500.0,0.00011426,2]
[323288509,1713875441330,-500.0,0.00011426,2]
[323288510,1713875441340,-500.0,0.00011426,2]
[323288511,1713875441350,-500.0,0.00011426,2]
[323288512,1713875441360,-500.0,0.00011426,2]
[323288513,1713875441370,-500.0,0.00011426,2]
[323288514,1713875441379,-391.39297556,0.00011426,2]
[323288515,1713875441389,-500.0,0.00011426,2]
[323288516,1713875441399,-500.0,0.00011426,2]
[323288518,1713875441408,-500.0,0.00011426,2]
[323288520,1713875441417,-500.0,0.00011426,2]
[323288522,1713875441427,-500.0,0.00011426,2]
[323288524,1713875441437,-500.0,0.00011426,2]
[323288526,1713875441447,-500.0,0.00011426,2]
[323288527,1713875441456,-642.2,0.00011426,2]
[323288528,1713875441465,-500.0,0.00011426,2]
[323288529,1713875441477,-500.0,0.00011426,2]
[323288530,1713875441491,-500.0,0.00011426,2]
[323288531,1713875441500,-500.0,0.00011426,2]
[323288532,1713875441510,-500.0,0.00011426,2]
[323288534,1713875441520,-500.0,0.00011426,2]
[323288537,1713875441530,-500.0,0.00011426,2]
[323288539,1713875441539,-500.0,0.00011426,2]
[323288540,1713875441549,-500.0,0.00011426,2]
[323288542,1713875441558,-673.87,0.00011426,2]
[323288544,1713875441568,-500.0,0.00011426,2]
[323288546,1713875441577,-500.0,0.00011426,2]
[323288548,1713875441586,-500.0,0.00011426,2]
[323288550,1713875441595,-500.0,0.00011426,2]
[323288552,1713875441605,-505.37,0.00011426,2]
[323288555,1713875441614,-500.0,0.00011426,2]
[323288556,1713875441624,-500.0,0.00011426,2]
[323288558,1713875441633,-500.0,0.00011426,2]
[323288560,1713875441642,-500.0,0.00011426,2]
[323288562,1713875441652,-509.24,0.00011426,2]
[323288565,1713875441661,-500.0,0.00011426,2]
[323288567,1713875441671,-500.0,0.00011426,2]
[323288568,1713875441680,-595.86,0.00011426,2]
[323288570,1713875441691,-500.0,0.00011426,2]
[323288572,1713875441701,-500.0,0.00011426,2]
[323288574,1713875441710,-500.0,0.00011426,2]
[323288576,1713875441719,-500.0,0.00011426,2]
[323288577,1713875441729,-545.52493379,0.00011426,2]
[323288578,1713875441738,-500.0,0.00011426,2]
[323288579,1713875441747,-521.6241852,0.00011426,2]
[323288580,1713875441756,-500.0,0.00011426,2]
[323288581,1713875441765,-500.0,0.00011426,2]
[323288582,1713875441774,-500.0,0.00011426,2]
[323288583,1713875441783,-230.99,0.00011426,2]
[323288584,1713875441792,-572.18,0.00011426,2]
[323288585,1713875441802,-500.0,0.00011426,2]
[323288586,1713875441814,-192.40242684,0.00011426,2]
[323288587,1713875441823,-363.15859822,0.00011426,2]
[323288588,1713875441833,-500.0,0.00011426,2]
[323288589,1713875441841,-500.0,0.00011426,2]
[323288590,1713875441851,-500.24312762,0.00011426,2]
[323288591,1713875441860,-550.43551478,0.00011426,2]
[323288592,1713875441869,-500.0,0.00011426,2]
[323288593,1713875441879,-500.0,0.00011426,2]
[323288594,1713875441887,-213.61122564,0.00011426,2]
[323288595,1713875441897,-414.65506966,0.00011426,2]
[323288596,1713875441907,-563.72,0.00011426,2]
[323288597,1713875441916,-228.15522037,0.00011426,2]
[323288598,1713875441925,-500.0,0.00011426,2]
[323288599,1713875441935,-500.0,0.00011426,2]
[323288600,1713875441944,-226.75,0.00011426,2]
[323288601,1713875441953,-500.0,0.00011426,2]
[323288602,1713875441963,-500.0,0.00011426,2]
[323288603,1713875441972,-500.0,0.00011426,2]
[323288604,1713875441982,-500.0,0.00011426,2]
[323288605,1713875441991,-506.14,0.00011426,2]
[323288606,1713875442000,-215.36955476,0.00011426,2]
[323288607,1713875442010,-500.0,0.00011426,2]
[323288608,1713875442210,-610.81,0.00011426,2]
[323288609,1713875442221,-500.0,0.00011426,2]
[323288610,1713875442230,-500.0,0.00011426,2]
[323288611,1713875442239,-6.72560365,0.00011426,2]
[323288612,1713875442264,-493.27439635,0.00011426,2]
[323288613,1713875442273,-500.0,0.00011426,2]
[323288614,1713875442282,-500.0,0.00011426,2]
[323288615,1713875442291,-500.0,0.00011426,2]
[323288616,1713875442300,-500.0,0.00011426,2]
[323288617,1713875442310,-338.82634515,0.00011426,2]
[323288618,1713875442319,-559.35,0.00011426,2]
[323288619,1713875442328,-500.0,0.00011426,2]
[323288620,1713875442337,-500.0,0.00011426,2]
[323288621,1713875442347,-500.0,0.00011426,2]
[323288622,1713875442357,-500.0,0.00011426,2]
[323288623,1713875442367,-500.0,0.00011426,2]
[323288624,1713875442376,-184.49,0.00011426,2]
[323288625,1713875442386,-466.9592585,0.00011426,2]
[323288626,1713875442487,23900.0,0.00010631,2]
[323288627,1713875442808,-128.6607415,0.00011426,2]
[323288628,1713875442818,-500.0,0.00011426,2]
[323288629,1713875442829,-500.0,0.00011426,2]
[323288630,1713875442837,-154.84,0.00011426,2]
[323288631,1713875442847,-485.47,0.00011426,2]
[323288633,1713875442856,-647.7,0.00011426,2]
[323288635,1713875442865,-166.69,0.00011426,2]
[323288637,1713875442875,-327.27,0.00011426,2]
[323288639,1713875442884,-500.0,0.00011426,2]
[323288642,1713875442894,-500.0,0.00011426,2]
[323288643,1713875442903,-500.0,0.00011426,2]
[323288646,1713875442913,-500.0,0.00011426,2]
[323288647,1713875442922,-500.0,0.00011426,2]
[323288649,1713875442931,-728.54,0.00011426,2]
[323288651,1713875442942,-500.0,0.00011426,2]
[323288653,1713875442951,-846.85,0.00011426,2]
[323288654,1713875442959,-500.0,0.00011426,2]
[323288655,1713875442969,-500.0,0.00011426,2]
[323288656,1713875442978,-500.0,0.00011426,2]
[323288657,1713875442988,-698.03,0.00011426,2]
[323288658,1713875442997,-450.11,0.00011426,2]
[323288659,1713875443006,-500.0,0.00011426,2]
[323288660,1713875443016,-575.33,0.00011426,2]
[323288661,1713875443025,-500.0,0.00011426,2]
[323288662,1713875443035,-358.50439461,0.00011426,2]
[323288663,1713875443059,-141.49560539,0.00011426,2]
[323288664,1713875443068,-500.0,0.00011426,2]
[323288665,1713875443077,-500.0,0.00011426,2]
[323288666,1713875443087,-221.71,0.00011426,2]
[323288667,1713875443097,-500.0,0.00011426,2]
[323288668,1713875443107,-588.18,0.00011426,2]
[323288669,1713875443116,-755.17,0.00011426,2]
[323288670,1713875443125,-500.0,0.00011426,2]
[323288671,1713875443135,-587.05,0.00011426,2]
[323288672,1713875443144,-500.0,0.00011426,2]
[323288673,1713875443153,-452.4,0.00011426,2]
[323288674,1713875443162,-276.40637711,0.00011426,2]
[323288676,1713875443172,-500.0,0.00011426,2]
[323288677,1713875443182,-623.86,0.00011426,2]
[323288678,1713875443193,-523.37,0.00011426,2]
[323288679,1713875443202,-500.0,0.00011426,2]
[323288680,1713875443211,-500.0,0.00011426,2]
[323288681,1713875443221,-599.67,0.00011426,2]
[323288682,1713875443230,-6424.33,0.00011426,2]
[323288683,1713875443240,-500.0,0.00011426,2]
[323288684,1713875443248,-500.0,0.00011426,2]
[323288685,1713875443257,-446.37,0.00011426,2]
[323288686,1713875443266,-706.95,0.00011426,2]
[323288687,1713875443276,-500.0,0.00011426,2]
[323288688,1713875443285,-329.52492774,0.00011426,2]
[323288689,1713875443294,-2231.55,0.00011426,2]
[323288690,1713875443304,-500.0,0.00011426,2]
[323288691,1713875443313,-500.0,0.00011426,2]
[323288692,1713875443323,-300.2203911,0.00011426,2]
[323288693,1713875443333,-890.91,0.00011426,2]
[323288694,1713875443342,-500.0,0.00011426,2]
[323288695,1713875443352,-500.0,0.00011426,2]
[323288696,1713875443361,-500.0,0.00011426,2]
[323288697,1713875443371,-500.0,0.00011426,2]
[323288698,1713875443380,-500.0,0.00011426,2]
[323288699,1713875443390,-500.0,0.00011426,2]
[323288700,1713875443399,-500.0,0.00011426,2]
[323288701,1713875443408,-236.99162521,0.00011426,2]
[323288702,1713875443417,-500.0,0.00011426,2]
[323288703,1713875443427,-500.0,0.00011426,2]
[323288704,1713875443437,-500.0,0.00011426,2]
[323288705,1713875443446,-7146.79,0.00011426,2]
[323288706,1713875443456,-428.22,0.00011426,2]
[323288707,1713875443466,-542.12,0.00011426,2]
[323288708,1713875443475,-177.98333497,0.00011426,2]
[323288709,1713875443484,-1142.03,0.00011426,2]
[323288710,1713875443494,-500.0,0.00011426,2]
[323288711,1713875443503,-504.05876177,0.00011426,2]